bitfinex-derivatives/quotes_SOLF0:USTF0_20251230
["timestamp","ask_amount","ask_price","bid_price","bid_amount"]
[1767104577565,0.05427833,124.65,124.6,22.75529483]
[1767104578665,0.05427833,124.65,124.61,7.2316]
[1767104579874,0.05427833,124.65,124.6,15.52309483]
[1767104580172,30.62427833,124.65,124.6,0.00309483]
[1767104580358,7.2278,124.68,124.62,15.47]
[1767104580565,37.7978,124.68,124.62,15.47]
[1767104580763,37.7978,124.68,124.61,7.2316]
[1767104580970,30.57,124.65,124.57,15.47]
[1767104581457,30.57,124.65,124.6,0.06076542]
[1767104581458,0.05682399,124.62,124.6,0.06076542]
[1767104581855,0.05682399,124.62,124.6,0.00076542]
[1767104582867,30.62682399,124.62,124.6,0.00076542]
[1767104583266,37.85822399,124.62,124.55,22.7648]
[1767104584171,30.62682399,124.62,124.56,15.53]
[1767104584373,30.62682399,124.62,124.58,0.05199595]
[1767104585070,37.85802399,124.62,124.58,0.05199595]
[1767104585270,37.85802399,124.62,124.58,0.00199595]
[1767104585972,30.57,124.6,124.58,0.00199595]
[1767104586168,30.57,124.6,124.53,15.52]
[1767104586868,30.57,124.6,124.53,22.7562]
[1767104587062,0.05898256,124.58,124.55,0.05308403]
[1767104587462,30.57,124.62,124.55,0.05308403]
[1767104587769,30.57,124.62,124.54,22.8055]
[1767104588161,30.57,124.62,124.54,26.28900554]
[1767104588361,30.57,124.64,124.56,15.57]
[1767104588561,0.0586644,124.61,124.59,0.05998385]
[1767104591676,30.6286644,124.61,124.56,94.88]
[1767104592065,30.6286644,124.61,124.54,15.63]
[1767104592276,30.6286644,124.61,124.54,110.51]
[1767104592574,30.6286644,124.61,124.56,0.05139592]
[1767104593377,0.0586644,124.61,124.56,15.68139592]
[1767104594583,0.0586644,124.61,124.56,22.91589592]
[1767104598681,29.4386644,124.61,124.56,0.05139592]
[1767104599580,36.6704644,124.61,124.56,0.05139592]
[1767104600282,36.6124,124.6,124.56,0.05139592]
[1767104603991,29.38,124.6,124.56,0.05139592]
[1767104607182,0.0586644,124.61,124.56,0.05139592]
[1767104607394,29.4386644,124.61,124.56,0.05139592]
[1767104610398,0.0586644,124.61,124.56,22.93599592]
[1767104611188,0.0586644,124.61,124.57,7.234]
[1767104613297,124.28,124.66,124.57,15.65]
[1767104613505,36.6092,124.66,124.59,7.2326]
[1767104613693,29.38,124.66,124.58,94.9]
[1767104614397,29.38,124.65,124.56,94.9]
[1767104614592,35.35209379,124.65,124.56,94.9]
[1767104614793,29.43955831,124.62,124.56,102.1346]
[1767104615398,36.67075831,124.62,124.55,15.59]
[1767104615700,36.67075831,124.62,124.55,110.49]
[1767104615893,36.67075831,124.62,124.57,0.0569398]
[1767104616600,36.6118,124.61,124.57,0.0569398]
[1767104616802,36.6118,124.61,124.53,110.55]
[1767104617004,29.38,124.61,124.53,110.55]
[1767104617797,0.05972472,124.58,124.56,0.05115309]
[1767104618308,0.05972472,124.58,124.56,0.00115309]
[1767104618506,29.43972472,124.58,124.56,0.00115309]
[1767104620606,38.90508266,124.58,124.51,15.75]
[1767104620807,29.38,124.57,124.51,15.75]
[1767104621512,0.05184519,124.55,124.53,0.05661893]
[1767104626214,29.38,124.57,124.53,0.05661893]
[1767104626422,38.60465794,124.59,124.53,0.05661893]
[1767104627219,0.06149342,124.57,124.53,0.05661893]
[1767104629419,29.20149342,124.57,124.53,0.05661893]
[1767104630818,0.06149342,124.57,124.53,0.05661893]
[1767104632820,0.06149342,124.57,124.53,23.04301893]
[1767104633018,0.06149342,124.57,124.53,15.80661893]
[1767104633228,29.14,124.59,124.53,15.80661893]
[1767104633523,29.14,124.59,124.53,110.72661893]
[1767104634127,0.06038222,124.57,124.53,112.95837687]
[1767104634724,29.14,124.59,124.54,7.2358]
[1767104635528,9.46355794,124.61,124.54,7.2358]
[1767104635529,36.3718,124.61,124.55,17.98175794]
[1767104635719,0.05265033,124.59,124.57,0.05079439]
[1767104636815,29.14,124.61,124.57,0.05079439]
[1767104637628,29.14,124.61,124.57,0.00079439]
[1767104638420,36.3718,124.61,124.57,0.00079439]
[1767104638626,0.06115119,124.6,124.57,0.00079439]
[1767104640820,30.83115119,124.6,124.57,0.00079439]
[1767104641826,33.06290913,124.6,124.57,0.00079439]
[1767104642133,38.0029,124.59,124.53,15.81]
[1767104643222,0.05271764,124.57,124.55,0.06076276]
[1767104644735,38.0023,124.61,124.56,2.23175794]
[1767104644939,30.77,124.64,124.56,2.23175794]
[1767104645326,30.77,124.64,124.56,17.99175794]
[1767104645834,0.05827954,124.61,124.59,0.05753828]
[1767104649831,30.77,124.63,124.59,0.05753828]
[1767104650330,30.77,124.65,124.59,0.05753828]
[1767104650533,4.1202437,124.68,124.59,18.04929622]
[1767104650740,30.77,124.67,124.61,2.23175794]
[1767104651028,30.77,124.67,124.63,0.05643372]
[1767104651029,0.0563388,124.65,124.63,0.05643372]
[1767104655325,0.0563388,124.65,124.63,2.28819166]
[1767104655735,30.77,124.67,124.63,2.28819166]
[1767104656738,0.0515541,124.66,124.63,2.28819166]
[1767104659137,29.6815541,124.66,124.63,0.05643372]
[1767104659542,0.0515541,124.66,124.63,2.28819166]
[1767104661744,0.0515541,124.66,124.63,0.05643372]
[1767104661949,29.6815541,124.66,124.61,7.2316]
[1767104662545,0.0515541,124.66,124.61,23.0316]
[1767104663053,0.0515541,124.66,124.62,0.0571077]
[1767104667255,0.0515541,124.66,124.62,25.32996564]
[1767104667458,0.0515541,124.66,124.62,18.09886564]
[1767104667753,29.63,124.69,124.62,18.09886564]
[1767104668062,36.8571,124.69,124.62,2.28886564]
[1767104668754,0.05273118,124.67,124.62,2.28886564]
[1767104670462,0.05273118,124.67,124.62,0.0571077]
[1767104670649,0.05273118,124.67,124.62,7.2882077]
[1767104672161,29.68273118,124.67,124.62,7.2882077]
[1767104672361,29.68273118,124.67,124.62,0.0571077]
[1767104672963,33.16323976,124.67,124.57,15.87]
[1767104673164,33.11050858,124.67,124.57,110.73]
[1767104673958,33.11050858,124.67,124.61,0.05793454]
[1767104673959,0.0582015,124.63,124.61,0.05793454]
[1767104674162,0.0582015,124.63,124.57,110.73]
[1767104674663,0.0582015,124.63,124.57,117.9638]
[1767104674965,0.0582015,124.63,124.58,15.93]
[1767104675266,29.63,124.66,124.6,23.162]
[1767104675562,29.63,124.66,124.61,15.87]
[1767104676265,0.05481775,124.65,124.62,0.05427759]
[1767104677662,29.68481775,124.65,124.62,0.00427759]
[1767104679475,36.91421775,124.65,124.62,0.00427759]
[1767104681271,7.28421775,124.65,124.62,0.00427759]
[1767104682569,36.91421775,124.65,124.62,0.00427759]
[1767104685884,29.68481775,124.65,124.62,0.00427759]
[1767104687182,36.91441775,124.65,124.62,0.00427759]
[1767104688874,7.2302,124.64,124.62,0.00427759]
[1767104689079,30.31,124.63,124.62,0.00427759]
[1767104700306,30.25,124.61,124.52,25.8031578]
[1767104700500,30.25,124.6,124.53,15.93]
[1767104700894,37.4824,124.6,124.53,23.1661]
[1767104701098,30.25,124.6,124.53,15.93]
[1767104701399,0.05580838,124.58,124.55,0.05559512]
[1767104702393,30.30580838,124.58,124.55,0.05559512]
[1767104702598,30.30580838,124.58,124.52,23.2265]
[1767104702788,30.30580838,124.58,124.5,98.36050858]
[1767104702789,30.30580838,124.58,124.5,110.87]
[1767104702992,30.25,124.58,124.5,15.99]
[1767104703595,30.25,124.58,124.53,0.05522413]
[1767104703596,0.06058029,124.55,124.53,0.05522413]
[1767104705398,30.31058029,124.55,124.49,110.87]
[1767104705597,30.31058029,124.55,124.49,15.99]
[1767104705798,30.31058029,124.55,124.47,15.99]
[1767104706002,30.25,124.55,124.47,15.99]
[1767104706207,37.4859,124.54,124.47,15.99]
[1767104706404,0.05271771,124.52,124.49,0.05594865]
[1767104708306,0.00271771,124.52,124.49,16.04594865]
[1767104708507,30.25,124.56,124.49,16.04594865]
[1767104708907,30.25,124.56,124.5,15.94]
[1767104709609,30.25,124.56,124.52,0.05795923]
[1767104709610,0.05791333,124.54,124.52,0.05795923]
[1767104709997,0.05791333,124.54,124.48,15.94]
[1767104710306,30.30791333,124.54,124.47,7.2395]
[1767104711001,37.54381333,124.54,124.46,110.92]
[1767104711303,0.05438652,124.51,124.49,0.05730237]
[1767104713106,0.05438652,124.51,124.46,16.0]
[1767104714102,0.05438652,124.51,124.47,0.05567403]
[1767104715205,30.25,124.5,124.43,35.03605121]
[1767104715708,30.25,124.5,124.44,23.3614]
[1767104716100,0.05564242,124.48,124.46,0.05930643]
[1767104716797,7.2362,124.54,124.46,17.77930643]
[1767104717000,28.5,124.55,124.48,16.12]
[1767104717508,35.7353,124.55,124.48,16.12]
[1767104717807,0.06111367,124.53,124.5,0.06061771]
[1767104719915,28.5,124.58,124.5,19.66112629]
[1767104720110,28.5,124.58,124.5,19.60050858]
[1767104720303,28.5,124.58,124.51,16.06]
[1767104720900,0.05352181,124.56,124.53,0.05858481]
[1767104726814,28.55352181,124.56,124.53,0.05858481]
[1767104727112,0.05352181,124.56,124.51,16.12]
[1767104727714,7.28852181,124.56,124.51,16.12]
[1767104727915,0.05352181,124.56,124.52,0.05528027]
[1767104729512,28.55352181,124.56,124.52,0.05528027]
[1767104736413,35.78822181,124.56,124.52,0.05528027]
[1767104736809,28.5,124.55,124.48,94.94]
[1767104737115,28.5,124.54,124.47,9.47118911]
[1767104737813,0.05921358,124.52,124.49,0.05392965]
[1767104738922,28.55921358,124.52,124.49,0.05392965]
[1767104739115,28.55921358,124.52,124.49,0.00392965]
[1767104739806,28.5,124.51,124.49,0.00392965]
[1767104740620,28.5,124.51,124.45,102.1805]
[1767104741714,0.05288088,124.49,124.47,0.05317413]
[1767104742310,28.5,124.51,124.47,0.05317413]
[1767104742516,28.5,124.53,124.47,0.05317413]
[1767104742715,30.73178911,124.55,124.48,18.47178911]
[1767104743312,0.05238658,124.53,124.5,0.05246291]
[1767104748532,30.96,124.51,124.45,23.4306]
[1767104748832,30.96,124.51,124.45,118.3906]
[1767104749530,0.05893647,124.49,124.47,0.05617225]
[1767104751136,30.96,124.51,124.47,0.05617225]
[1767104752138,0.05470394,124.5,124.47,0.05617225]
[1767104762257,31.01470394,124.5,124.47,0.05617225]
[1767104762447,31.01470394,124.5,124.44,94.96]
[1767104762642,7.2394,124.48,124.44,94.96]
[1767104763042,30.96,124.49,124.43,30.16584032]
[1767104763245,30.96,124.49,124.44,23.5615]
[1767104763450,30.96,124.51,124.45,18.60493131]
[1767104764555,30.96,124.51,124.46,7.2404]
[1767104764958,30.96,124.55,124.49,2.23178911]
[1767104765659,0.05557216,124.53,124.51,0.05510709]
[1767104765855,0.05557216,124.53,124.48,16.26]
[1767104766959,0.05557216,124.53,124.49,0.05345242]
[1767104768364,38.44207216,124.53,124.49,0.05345242]
[1767104768555,33.43736127,124.53,124.49,0.00345242]
[1767104769554,7.237,124.52,124.49,0.00345242]
[1767104769960,38.387,124.52,124.49,0.00345242]
[1767104770457,0.05557216,124.53,124.49,0.00345242]
[1767104778066,0.05557216,124.53,124.49,7.24195242]
[1767104778266,0.05557216,124.53,124.49,9.47374153]
[1767104779671,28.50557216,124.53,124.49,2.23524153]
[1767104779972,28.45,124.52,124.49,0.00345242]
[1767104782480,28.45,124.51,124.49,0.00345242]
[1767104782671,28.45,124.51,124.44,97.19178911]
[1767104782976,30.68178911,124.5,124.44,102.2016]
[1767104783669,0.05998414,124.48,124.46,0.06044632]
[1767104791381,28.45,124.52,124.46,16.45044632]
[1767104791882,28.45,124.52,124.46,0.06044632]
[1767104792283,0.06016559,124.5,124.46,0.06044632]
[1767104792679,28.51016559,124.5,124.46,0.06044632]
[1767104794476,35.74836559,124.5,124.46,0.00044632]
[1767104794677,28.45,124.49,124.46,0.00044632]
[1767104795581,28.45,124.48,124.43,11.67405121]
[1767104796576,0.0594881,124.47,124.44,0.06132924]
[1767104797189,28.5094881,124.47,124.44,0.00132924]
[1767104798588,28.5094881,124.47,124.43,11.4652046]
[1767104799692,28.5094881,124.47,124.44,0.05632058]
[1767104800188,28.5094881,124.47,124.43,11.4652046]
[1767104802294,28.5094881,124.47,124.44,0.05826341]
[1767104803798,28.5094881,124.47,124.43,11.4652046]
[1767104805195,28.45,124.46,124.4,94.98]
[1767104805396,0.05373829,124.44,124.4,94.98]
[1767104806001,0.05373829,124.44,124.4,102.2239]
[1767104806402,28.28,124.49,124.41,28.16]
[1767104806901,7.2396,124.48,124.41,28.16]
[1767104807106,28.28,124.47,124.41,28.16]
[1767104807307,28.28,124.47,124.4,102.2436]
[1767104807507,0.05917458,124.45,124.42,0.06023228]
[1767104809599,28.28,124.49,124.42,28.28023228]
[1767104809804,28.28,124.51,124.44,28.16]
[1767104810698,0.05695791,124.49,124.46,0.05919639]
[1767104811906,28.28,124.51,124.46,28.26919639]
[1767104812901,0.06134943,124.5,124.46,28.26919639]
[1767104813611,0.06134943,124.5,124.46,35.50949639]
[1767104815003,0.06134943,124.5,124.46,0.05919639]
[1767104819016,28.34134943,124.5,124.46,0.05919639]
[1767104819217,28.34134943,124.5,124.42,28.38]
[1767104819414,28.28,124.5,124.42,28.38]
[1767104819714,31.7697006,124.5,124.42,28.38]
[1767104819908,28.28,124.47,124.4,123.44]
[1767104820314,7.2393,124.48,124.4,123.44]
[1767104820315,7.2393,124.48,124.42,28.51701359]
[1767104820614,35.5193,124.48,124.42,28.51701359]
[1767104821317,0.05336297,124.46,124.42,28.51701359]
[1767104821613,0.05336297,124.46,124.42,32.00671419]
[1767104821814,35.5184,124.5,124.42,32.00671419]
[1767104822015,35.5184,124.5,124.43,130.6721]
[1767104822215,35.5171,124.52,124.44,31.9397006]
[1767104822616,35.5171,124.52,124.45,94.98]
[1767104822813,0.05989137,124.5,124.47,0.05057875]
[1767104829422,0.05989137,124.5,124.47,28.66057875]
[1767104829622,7.2364,124.53,124.47,28.66057875]
[1767104829813,35.5164,124.53,124.47,28.66057875]
[1767104830219,28.28,124.53,124.47,28.66057875]
[1767104830619,0.05350875,124.51,124.47,28.66057875]
[1767104830919,0.05350875,124.51,124.47,123.64057875]
[1767104832927,3.4897006,124.55,124.48,28.69]
[1767104832928,28.28,124.55,124.48,28.69]
[1767104833123,28.28,124.55,124.48,32.1797006]
[1767104833426,28.28,124.55,124.5,28.64]
[1767104834027,0.0593445,124.54,124.51,0.05756792]
[1767104845628,37.8552445,124.54,124.51,0.05756792]
[1767104847727,30.6193445,124.54,124.51,0.05756792]
[1767104849329,0.0593445,124.54,124.51,0.05756792]
[1767104852835,30.6193445,124.54,124.51,0.05756792]
[1767104857544,37.8551445,124.54,124.48,94.96]
[1767104858432,37.8551445,124.54,124.5,0.05103838]
[1767104861946,37.8551445,124.54,124.5,0.00103838]
[1767104862148,30.56,124.52,124.5,0.00103838]
[1767104870367,37.7971,124.52,124.5,0.00103838]
[1767104871562,30.56,124.52,124.5,0.00103838]
[1767104876575,38.9956445,124.54,124.5,0.00103838]
[1767104879570,31.7593445,124.54,124.5,0.00103838]
[1767104881574,31.79,124.56,124.51,2.23224663]
[1767104881775,31.79,124.56,124.53,2.23224663]
[1767104881974,31.79,124.56,124.52,2.23224663]
[1767104882678,31.79,124.58,124.53,29.57771421]
[1767104882869,31.79,124.6,124.54,2.23224663]
[1767104883280,31.79,124.6,124.53,31.75224663]
[1767104883774,0.0571596,124.58,124.55,0.05885194]
[1767104884086,31.8471596,124.58,124.55,0.05885194]
[1767104885577,39.0807596,124.58,124.51,124.44]
[1767104885881,39.0807596,124.58,124.52,2.23224663]
[1767104886783,39.0807596,124.58,124.54,0.05314621]
[1767104886980,39.0807596,124.58,124.54,0.00314621]
[1767104887474,31.79,124.56,124.54,0.00314621]
[1767104894480,31.79,124.56,124.47,122.51862848]
[1767104894481,34.02224663,124.56,124.47,39.53202848]
[1767104894684,31.79,124.53,124.47,29.63]
[1767104894880,31.79,124.53,124.48,31.87224663]
[1767104895083,31.79,124.53,124.45,112.6359]
[1767104895084,31.79,124.55,124.5,31.87224663]
[1767104895581,0.0566297,124.54,124.51,0.05699184]
[1767104897288,0.0566297,124.54,124.48,36.9089]
[1767104897289,29.5766297,124.54,124.48,36.9089]
[1767104897488,31.75224663,124.54,124.46,31.96224663]
[1767104897881,29.52,124.54,124.46,31.96224663]
[1767104898082,31.75224663,124.54,124.46,31.96224663]
[1767104898384,0.05086732,124.51,124.49,0.0583487]
[1767104914098,31.75224663,124.55,124.49,29.9383487]
[1767104914301,31.75224663,124.55,124.49,29.88]
[1767104914604,29.52,124.55,124.49,29.88]
[1767104914997,0.05590615,124.53,124.51,0.05842297]
[1767104921106,112.5328,124.57,124.51,0.05842297]
[1767104921107,29.52,124.58,124.51,29.92842297]
[1767104922202,0.05457145,124.56,124.51,37.16592297]
[1767104922407,0.05457145,124.56,124.51,29.92842297]
[1767104922905,0.05457145,124.56,124.52,37.1269]
[1767104923118,0.05457145,124.56,124.52,29.89]
[1767104928113,35.25243705,124.56,124.48,37.1788]
[1767104928314,35.1978656,124.56,124.48,37.1788]
[1767104928514,35.1978656,124.56,124.47,94.94]
[1767104929015,31.71,124.53,124.46,132.18]
[1767104929214,0.057253,124.51,124.48,0.05660315]
[1767104935518,38.9458,124.54,124.48,30.10660315]
[1767104935720,38.9466,124.53,124.48,0.05660315]
[1767104936517,31.77055295,124.52,124.48,0.05660315]
[1767104941127,39.00755295,124.52,124.48,0.05660315]
[1767104941314,31.77055295,124.52,124.42,9.90202848]
[1767104941519,31.71,124.5,124.42,30.09]
[1767104942319,0.05758037,124.47,124.45,0.05955015]
[1767104942519,31.71,124.5,124.45,0.05955015]
[1767104943618,0.05923463,124.49,124.45,0.05955015]
[1767104943815,0.05923463,124.49,124.45,30.15955015]
[1767104946734,0.05923463,124.49,124.45,0.05955015]
[1767104950325,31.76923463,124.49,124.45,0.05955015]
[1767104953034,31.76923463,124.49,124.42,30.14]
[1767104953835,31.76923463,124.49,124.44,0.05783142]
[1767104954528,39.00813463,124.49,124.44,0.05783142]
[1767104956925,7.2397,124.48,124.44,0.05783142]
[1767104957125,7.2397,124.48,124.4,125.23]
[1767104957126,37.1197,124.48,124.4,125.23]
[1767104958432,0.05966315,124.45,124.43,0.05537252]
[1767104959526,29.93966315,124.45,124.4,94.98]
[1767104959939,29.93966315,124.45,124.39,37.5643]
[1767104960526,29.93966315,124.45,124.41,0.05945474]
[1767104962134,0.05966315,124.45,124.41,0.05945474]
[1767104962537,29.93966315,124.45,124.38,37.6348]
[1767104962837,29.93966315,124.45,124.38,30.39]
[1767104963837,29.93966315,124.45,124.4,0.05213341]
[1767104967846,29.93966315,124.45,124.4,30.53213341]
[1767104968639,29.93966315,124.45,124.4,0.05213341]
[1767104970934,29.93966315,124.45,124.4,0.00213341]
[1767104971139,29.88,124.44,124.4,0.00213341]
[1767104971643,29.88,124.42,124.4,0.00213341]
[1767104972041,29.93277477,124.42,124.4,0.00213341]
[1767104974139,29.88,124.41,124.4,0.00213341]
[1767104975146,29.88,124.4,124.32,30.52]
[1767104975342,124.9,124.4,124.32,30.52]
[1767104976246,0.05400015,124.37,124.32,30.52]
[1767104976443,0.05400015,124.37,124.32,40.0065523]
[1767104976646,0.05400015,124.37,124.33,30.5]
[1767104978655,0.05400015,124.37,124.33,32.7381523]
[1767104979156,0.05400015,124.37,124.33,39.9860523]
[1767104979552,0.05400015,124.37,124.31,30.45]
[1767104979754,0.05400015,124.37,124.31,143.2134]
[1767104979957,29.88,124.4,124.34,32.6681523]
[1767104980953,29.88,124.4,124.36,0.06005438]
[1767104980954,0.05061192,124.38,124.36,0.06005438]
[1767104981155,29.93061192,124.38,124.36,5.438e-05]
[1767104981350,29.93061192,124.38,124.29,31.8696139]
[1767104981351,29.88,124.37,124.29,31.8696139]
[1767104981553,32.1181523,124.36,124.29,30.47]
[1767104982357,0.05273554,124.34,124.29,30.47]
[1767104982662,0.05273554,124.34,124.29,37.7202]
[1767104983054,0.05273554,124.34,124.27,7.2512]
[1767104983055,32.17088784,124.34,124.27,7.2512]
[1767104983255,32.17088784,124.34,124.26,32.6781523]
[1767104983461,0.05621287,124.31,124.26,32.6781523]
[1767104983657,0.05621287,124.31,124.25,207.8573]
[1767104983658,0.05621287,124.31,124.27,32.6581523]
[1767104983853,95.04,124.37,124.27,32.6581523]
[1767104983854,9.4848523,124.36,124.28,30.42]
[1767104984058,29.88,124.35,124.29,30.42]
[1767104984660,29.88,124.35,124.29,37.6702]
[1767104984959,0.05303475,124.33,124.31,0.055446]
[1767104985459,0.05303475,124.33,124.27,134.9592523]
[1767104986260,0.05303475,124.33,124.28,7.2509]
[1767104987766,0.05303475,124.33,124.28,36.6609]
[1767104987970,30.39303475,124.33,124.28,36.6609]
[1767104988174,30.39303475,124.33,124.28,29.41]
[1767104989077,30.39303475,124.33,124.27,95.06]
[1767104989878,32.63118705,124.33,124.27,95.06]
[1767104990972,32.63118705,124.33,124.26,36.6618]
[1767104991273,30.39303475,124.33,124.26,36.6618]
[1767104991673,30.34,124.31,124.24,48.52597352]
[1767104991873,0.06120295,124.29,124.24,48.52597352]
[1767104994174,0.06120295,124.29,124.25,31.6481523]
[1767104994982,0.06120295,124.29,124.25,29.41]
[1767104995881,0.06120295,124.29,124.25,31.6481523]
[1767104996077,30.34,124.31,124.26,29.41]
[1767104996276,2.2381523,124.33,124.25,9.4906523]
[1767104996277,30.34,124.34,124.28,31.6481523]
[1767104997176,0.05522032,124.32,124.3,0.05490001]
[1767104997480,30.39522032,124.32,124.3,0.00490001]
[1767104997681,30.39522032,124.32,124.25,7.2523]
[1767104997981,30.39522032,124.32,124.25,36.6623]
[1767104999177,30.39522032,124.32,124.25,7.2523]
[1767104999381,32.5781523,124.31,124.24,11.86307352]
[1767104999575,0.06120323,124.29,124.24,41.27307352]
[1767105000283,2.2381523,124.32,124.26,29.41]
[1767105000482,2.2381523,124.3,124.24,11.86307352]
[1767105000680,30.34,124.29,124.24,11.86307352]
[1767105000885,32.5781523,124.28,124.24,0.00307352]
[1767105001181,0.05642907,124.27,124.25,0.05413961]
[1767105001486,0.05642907,124.27,124.25,0.00413961]
[1767105001987,30.34,124.3,124.25,0.00413961]
[1767105002374,30.34,124.35,124.26,2.2381523]
[1767105002574,30.34,124.33,124.26,31.6481523]
[1767105002883,32.5781523,124.28,124.24,0.00307352]
[1767105003180,39.8303523,124.26,124.18,38.9047523]
[1767105003380,32.5781523,124.25,124.18,36.6666]
[1767105003574,30.34,124.25,124.18,29.41]
[1767105003993,2.2381523,124.23,124.16,2.2381523]
[1767105004182,0.05542269,124.21,124.18,0.02405646]
[1767105004487,30.34,124.19,124.12,29.41]
[1767105004875,30.34,124.24,124.17,2.2381523]
[1767105005077,30.34,124.28,124.19,2.2381523]
[1767105005286,30.34,124.28,124.21,2.2381523]
[1767105005483,0.05637769,124.24,124.2,31.6481523]
[1767105005682,0.05637769,124.24,124.19,95.12]
[1767105005884,30.39637769,124.24,124.17,29.41]
[1767105006083,0.05259078,124.22,124.16,95.12]
[1767105006280,30.39259078,124.22,124.16,95.12]
[1767105006587,30.39259078,124.22,124.15,31.6481523]
[1767105006786,0.05073432,124.2,124.15,31.6481523]
[1767105006988,0.05073432,124.2,124.17,2.2381523]
[1767105007178,30.34,124.24,124.17,29.41]
[1767105007492,30.34,124.24,124.18,9.4947523]
[1767105007686,30.34,124.22,124.14,29.41]
[1767105007885,30.34,124.22,124.15,31.6481523]
[1767105008083,0.05822413,124.2,124.17,0.05073432]
[1767105009383,30.34,124.24,124.17,29.46073432]
[1767105009591,32.5781523,124.27,124.18,31.6481523]
[1767105009884,112.7801,124.3,124.22,31.6481523]
[1767105009885,30.34,124.3,124.22,31.6481523]
[1767105010083,30.34,124.29,124.21,2.2381523]
[1767105010290,30.34,124.27,124.21,2.2381523]
[1767105010485,0.06068852,124.25,124.23,0.05388307]
[1767105011090,30.34,124.3,124.23,0.05388307]
[1767105011484,32.5781523,124.27,124.23,0.00388307]
[1767105011686,30.34,124.27,124.23,0.00388307]
[1767105011885,32.5781523,124.27,124.23,0.00388307]
[1767105012086,30.34,124.27,124.23,0.00388307]
[1767105012495,0.05758517,124.26,124.24,2.2381523]
[1767105012786,30.34,124.31,124.24,2.2381523]
[1767105012993,30.34,124.31,124.26,2.2381523]
[1767105013290,30.34,124.31,124.24,2.2381523]
[1767105013291,37.5896,124.31,124.24,2.2381523]
[1767105013490,30.34,124.31,124.25,2.2381523]
[1767105013691,0.05077902,124.29,124.27,0.05345727]
[1767105014394,0.05077902,124.29,124.27,0.00345727]
[1767105016497,30.01077902,124.29,124.27,0.00345727]
[1767105017787,0.05077902,124.29,124.27,0.00345727]
[1767105018187,30.73,124.34,124.27,2.24160957]
[1767105018385,112.7413,124.34,124.27,0.00345727]
[1767105018589,2.2381523,124.3,124.27,0.00345727]
[1767105018792,30.73,124.29,124.27,0.00345727]
[1767105018988,32.9681523,124.29,124.27,0.00345727]
[1767105019189,40.2187523,124.29,124.22,2.2381523]
[1767105019491,30.73,124.29,124.24,2.2381523]
[1767105019886,30.73,124.29,124.22,30.75]
[1767105020088,0.0540944,124.27,124.25,2.2381523]
[1767105020487,0.0540944,124.27,124.24,0.05443411]
[1767105021395,30.7840944,124.27,124.24,0.00443411]
[1767105021588,30.73,124.25,124.18,30.75]
[1767105022396,112.8397,124.23,124.14,2.2381523]
[1767105022698,30.78681973,124.2,124.11,1.40175622]
[1767105022886,30.78681973,124.2,124.1,95.16]
[1767105022887,30.73,124.17,124.1,95.16]
[1767105023292,30.73,124.17,124.11,2.2381523]
[1767105023488,95.16,124.2,124.07,30.75]
[1767105023489,32.9681523,124.16,124.07,30.75]
[1767105023799,0.05236708,124.13,124.1,0.06000977]
[1767105023997,30.78236708,124.13,124.1,9.77e-06]
[1767105024195,32.9681523,124.11,124.0,226.0876]
[1767105024393,32.9681523,124.11,124.01,143.786]
[1767105024600,30.73,124.11,124.0,1.40294296]
[1767105024791,30.73,124.09,123.98,143.8071]
[1767105024988,30.73,124.09,123.98,113.0571]
[1767105025194,0.0578701,124.05,123.97,143.8228]
[1767105025399,30.73,124.06,123.97,30.75]
[1767105025400,0.06066879,124.02,123.97,30.75]
[1767105025801,0.06066879,124.02,123.95,321.3585]
[1767105025802,0.06066879,124.02,123.95,30.75]
[1767105026100,112.9868,124.07,123.98,151.0779]
[1767105026101,30.73,124.07,123.98,151.0779]
[1767105026397,30.73,124.06,123.98,30.75]
[1767105026590,125.91,124.09,123.99,143.804]
[1767105026790,30.73,124.09,124.01,30.75]
[1767105026987,34.79416899,124.12,124.02,143.7766]
[1767105027198,34.79416899,124.12,123.99,113.054]
[1767105027199,30.78515549,124.08,124.06,0.00426404]